bitfinex/quotes_ETHUSD_20240925
["timestamp","ask_amount","ask_price","bid_price","bid_amount"]
[1727280980874,3.8424,2602.6,2602.4,0.0373866]
[1727280981312,3.84245,2602.5,2602.4,0.0373866]
[1727280981484,7.71566078,2602.5,2602.4,0.0373866]
[1727280981686,7.08155921,2602.5,2602.4,0.0373866]
[1727280981884,9.19926969,2602.5,2602.4,0.0373866]
[1727280983802,10.15111598,2602.5,2602.4,0.0373866]
[1727280984319,5.02967304,2602.6,2602.4,0.0373866]
[1727280984320,0.79235766,2602.6,2602.4,0.0373866]
[1727280984472,0.79235766,2602.9,2602.6,3.84231]
[1727280984676,0.79235766,2603.0,2602.6,3.8422]
[1727280984871,5.02895304,2603.1,2602.6,3.8422]
[1727280984872,4.63394766,2603.1,2602.6,3.8422]
[1727280985126,0.63473066,2603.0,2602.6,7.68443]
[1727280985321,0.63473066,2603.0,2602.8,3.84199]
[1727280985477,0.79235766,2603.2,2602.8,3.84194]
[1727280985674,4.63364766,2603.3,2602.8,7.68387]
[1727280985985,0.63484642,2603.2,2602.9,3.84186]
[1727280986616,0.0940006,2603.1,2602.9,3.84186]
[1727280986913,0.0940006,2603.1,2602.9,8.43966]
[1727280987126,0.79235766,2603.3,2602.9,8.43957]
[1727280987295,0.79235766,2603.4,2603.3,3.84127]
[1727280987485,0.79235766,2603.7,2603.6,3.84083]
[1727280987679,0.79235766,2604.0,2603.6,3.0]
[1727280987929,1.18736304,2604.2,2603.6,3.0]
[1727280987930,0.79235766,2604.1,2603.6,6.84069]
[1727280988127,3.2858537,2604.1,2603.7,3.84056]
[1727280988330,0.79235766,2604.1,2603.8,3.84052]
[1727280988615,0.79235766,2604.2,2603.9,3.84039]
[1727280988782,0.79235766,2604.3,2603.9,3.84039]
[1727280988983,2.37953953,2604.3,2603.9,3.84039]
[1727280989196,8.63901687,2604.4,2603.9,3.84039]
[1727280989394,2.37957116,2604.3,2603.9,3.84035]
[1727280989618,0.79235766,2604.4,2604.0,3.84017]
[1727280989828,0.79235766,2604.6,2604.5,3.8395]
[1727280989999,0.79235766,2604.9,2604.7,3.83921]
[1727280990185,4.63100766,2605.1,2604.6,3.83934]
[1727280990385,0.46310077,2605.0,2604.5,7.61257]
[1727280990925,0.46310077,2605.0,2604.5,3.0]
[1727280991121,0.46310077,2605.0,2604.2,3.83984]
[1727280991122,3.83916,2604.8,2604.2,0.8272]
[1727280991282,4.223266,2604.7,2604.2,4.66712]
[1727280991765,3.83939,2604.6,2604.1,3.0]
[1727280991989,3.83939,2604.6,2603.8,0.8213]
[1727280991990,3.83974,2604.4,2603.8,4.6617]
[1727280992148,3.83989,2604.3,2603.8,4.6617]
[1727280992353,3.83974,2604.4,2603.8,4.6617]
[1727280992568,4.223784,2604.3,2603.8,4.6617]
[1727280992771,3.83981,2604.3,2603.8,4.6617]
[1727280993083,3.83981,2604.3,2603.8,8.50216]
[1727280993393,3.83946,2604.6,2603.8,4.6617]
[1727280993593,3.83969,2604.4,2603.8,4.6617]
[1727280994192,3.83969,2604.4,2603.9,3.84034]
[1727280995050,3.83946,2604.6,2604.0,3.84021]
[1727280995253,0.383916,2604.7,2604.2,3.83994]
[1727280995448,4.223126,2604.7,2604.2,3.83987]
[1727280995762,3.83906,2604.8,2604.3,3.83977]
[1727280995966,3.83898,2604.9,2604.4,4.66294]
[1727280996156,3.83893,2604.9,2604.4,0.8233]
[1727280996362,0.50617308,2604.8,2604.4,4.66293]
[1727280996587,3.83893,2604.9,2604.4,4.66293]
[1727280996792,3.83884,2605.0,2604.4,4.66293]
[1727280997144,7.67772,2605.0,2604.4,8.50239]
[1727280997386,3.83893,2604.9,2604.4,4.66282]
[1727280997695,4.606702,2604.9,2604.4,4.66282]
[1727280997881,3.83893,2604.9,2604.4,8.50239]
[1727280998195,3.83893,2604.9,2604.4,4.66282]
[1727280998492,3.83893,2604.9,2604.3,3.0]
[1727280998659,3.83893,2604.9,2604.4,3.83958]
[1727280998850,3.83893,2604.9,2604.4,7.6791]
[1727280999667,3.83872,2605.1,2604.4,3.83953]
[1727280999878,3.83872,2605.1,2604.6,3.83932]
[1727281000107,3.83837,2605.3,2604.7,4.58946]
[1727281000311,0.0373866,2605.5,2604.7,4.58946]
[1727281000532,7.67708,2605.2,2604.7,4.58939]
[1727281000812,3.83848,2605.2,2604.7,4.58939]
[1727281001570,0.09054223,2605.1,2604.7,4.58939]
[1727281001796,3.83846,2605.3,2604.7,4.58939]
[1727281002006,0.09062536,2605.0,2604.7,8.42851]
[1727281002225,3.83828,2605.4,2604.8,3.83899]
[1727281002431,0.09062536,2604.9,2604.8,3.83899]
[1727281002733,3.83833,2605.3,2604.8,3.83899]
[1727281002939,0.09062536,2604.9,2604.8,3.83899]
[1727281003208,4.66827823,2605.3,2604.8,3.83899]
[1727281003209,3.83833,2605.3,2604.8,3.83899]
[1727281003377,0.09062536,2604.9,2604.8,3.83899]
[1727281003591,3.83833,2605.3,2604.8,3.83899]
[1727281003878,0.62287233,2605.5,2604.8,3.83899]
[1727281003879,0.09062536,2604.9,2604.8,3.83899]
[1727281004110,0.0373866,2605.5,2605.3,3.83829]
[1727281004415,0.09068078,2605.4,2605.3,3.83829]
[1727281004579,0.09068078,2605.4,2605.3,4.67089]
[1727281005073,0.09068078,2605.4,2605.3,0.8326]
[1727281005285,0.09068078,2605.4,2605.1,4.63914]
[1727281005503,0.09068078,2605.4,2605.2,3.83847]
[1727281005676,0.09068078,2605.4,2605.3,3.83832]
[1727281005877,0.09068078,2605.4,2605.3,6.83832]
[1727281006313,0.0373866,2605.5,2605.4,3.83818]
[1727281006906,0.0373866,2605.5,2605.4,6.83818]
[1727281007109,0.0373866,2605.5,2605.4,7.62638]
[1727281007518,0.0373866,2605.5,2605.4,8.17638]
[1727281014412,0.0373866,2605.5,2605.4,7.62638]
[1727281015801,0.0373866,2605.5,2605.4,8.17638]
[1727281018838,0.0373866,2605.5,2605.4,7.62638]
[1727281019414,0.0373866,2605.5,2605.4,8.17638]
[1727281020214,0.0373866,2605.5,2605.4,4.62638]
[1727281020614,0.0373866,2605.5,2605.4,5.17638]
[1727281021846,0.0373866,2605.5,2605.4,8.17638]
[1727281023531,0.0373866,2605.5,2605.4,27.85638]
[1727281023924,0.0373866,2605.5,2605.4,28.24118]
[1727281024470,0.0373866,2605.5,2605.4,27.85638]
[1727281024922,0.0373866,2605.5,2605.4,28.24128]
[1727281025125,0.0373866,2606.3,2606.2,8.1594]
[1727281027163,0.0373866,2606.3,2606.2,6.837]
[1727281028463,0.0373866,2606.3,2606.2,7.387]
[1727281028968,0.0373866,2606.3,2606.2,3.837]
[1727281029123,0.12450666,2606.3,2606.2,3.837]
[1727281029564,0.7666,2606.2,2606.1,3.83707]
[1727281029761,0.85439797,2606.2,2606.1,3.83707]
[1727281030621,0.7666,2606.2,2606.1,3.83707]
[1727281030867,0.85439797,2606.2,2606.1,6.83707]
[1727281031369,0.08779797,2606.2,2606.1,6.83707]
[1727281031535,0.0373866,2606.3,2606.2,3.0]
[1727281031864,0.12518457,2606.3,2606.2,6.837]
[1727281032921,0.0373866,2606.3,2606.2,6.837]
[1727281033566,0.12518457,2606.3,2606.2,6.837]
[1727281033736,0.7575,2606.2,2606.1,6.8371]
[1727281034160,0.84529797,2606.2,2606.1,6.8371]
[1727281034327,0.7575,2606.2,2606.1,6.8371]
[1727281034523,0.7575,2606.2,2606.1,3.0]
[1727281034928,0.84529797,2606.2,2606.1,3.0]
[1727281035365,0.84529797,2606.2,2605.8,3.8375]
[1727281035366,0.84529797,2606.2,2605.8,3.83757]
[1727281035629,1.31725843,2606.2,2605.5,3.83795]
[1727281035939,1.31725843,2606.2,2605.8,3.83749]
[1727281036260,1.31725843,2606.2,2605.9,3.83743]
[1727281036261,0.84529797,2606.2,2605.9,3.83743]
[1727281036460,0.84529797,2606.2,2605.9,3.83736]
[1727281036764,0.7575,2606.2,2605.7,7.67537]
[1727281036926,0.08736223,2606.1,2605.9,3.83732]
[1727281037128,0.08736223,2606.1,2606.0,6.83728]
[1727281037436,0.0373866,2606.3,2606.2,6.837]
[1727281038874,0.12452759,2606.3,2606.2,6.837]
[1727281039039,0.0373866,2606.3,2606.2,6.837]
[1727281039232,0.12452759,2606.3,2606.2,6.837]
[1727281040946,0.93742759,2606.3,2606.1,3.83708]
[1727281041271,0.93742759,2606.3,2606.0,3.0]
[1727281041599,0.93742759,2606.3,2606.0,6.83718]
[1727281042435,0.93742759,2606.3,2606.1,3.83707]
[1727281042637,0.93742759,2606.3,2606.2,3.0]
[1727281043975,0.93742759,2606.3,2606.1,3.0]
[1727281044176,0.93742759,2606.3,2606.1,6.83708]
[1727281045172,0.93742759,2606.3,2606.2,3.0]
[1727281047966,0.12452759,2606.3,2606.2,6.837]
[1727281048673,0.0373866,2606.3,2606.2,6.837]
[1727281049366,0.0373866,2606.3,2606.2,7.16954156]
[1727281049895,0.0373866,2606.3,2606.2,7.16953815]
[1727281050399,0.0373866,2606.3,2606.2,6.837]
[1727281050790,0.12446537,2606.3,2606.2,6.837]
[1727281056619,0.12446537,2606.3,2606.2,7.6383]
[1727281056919,0.12446537,2606.3,2606.2,6.837]
[1727281057074,0.12446537,2606.3,2606.2,3.0]
[1727281057409,1.67292303,2606.3,2606.2,3.0]
[1727281057613,1.67292303,2606.3,2606.1,3.0]
[1727281057911,1.67292303,2606.3,2606.1,3.83713]
[1727281058105,1.67292303,2606.3,2606.2,3.0]
[1727281058422,0.12446537,2606.3,2606.2,6.837]
[1727281058584,0.12446537,2606.3,2606.2,11.40319378]
[1727281058800,0.0373866,2606.3,2606.2,7.6231]
[1727281059319,0.0373866,2606.3,2606.2,8.1731]
[1727281059619,0.0373866,2606.3,2606.2,11.40319378]
[1727281059819,0.0373866,2606.3,2606.2,13.16060134]
[1727281060408,0.0373866,2606.3,2606.2,8.87605993]
[1727281060723,0.0373866,2606.3,2606.2,9.93028892]
[1727281060932,0.0373866,2606.3,2606.2,8.87605993]
[1727281061431,0.0373866,2606.3,2606.2,8.1731]
[1727281061885,0.0373866,2606.3,2606.2,8.87582953]
[1727281062082,0.0373866,2606.3,2606.2,8.1731]
[1727281063831,0.0373866,2606.3,2606.2,3.837]
[1727281065233,0.0373866,2606.3,2606.2,6.837]
[1727281065721,0.0373866,2606.3,2606.2,7.6394]
[1727281066225,0.0373866,2606.3,2606.2,6.837]
[1727281069094,0.12182555,2606.3,2606.2,6.837]
[1727281069295,0.0373866,2606.3,2606.2,6.837]
[1727281070131,0.12196387,2606.3,2606.2,6.837]
[1727281070331,0.0373866,2606.3,2606.2,6.837]
[1727281071244,0.0373866,2606.3,2606.2,6.91372514]
[1727281071801,0.0373866,2606.3,2606.2,6.837]
[1727281072265,0.0373866,2606.3,2606.2,6.91372409]
[1727281072410,0.0373866,2606.3,2606.2,6.837]
[1727281076916,0.0373866,2606.3,2606.2,6.91372041]
[1727281078321,0.0373866,2606.3,2606.2,7.387]
[1727281078505,0.0373866,2606.3,2606.2,8.152]
[1727281081217,0.0373866,2606.3,2606.2,9.90935233]
[1727281081431,0.0373866,2606.3,2606.2,10.70935582]
[1727281081845,0.0373866,2606.3,2606.2,9.90935233]
[1727281082509,0.0373866,2606.3,2606.2,10.70935582]
[1727281083852,0.0373866,2606.3,2606.2,10.70960779]
[1727281085313,0.0373866,2606.3,2606.2,11.10964579]
[1727281085532,0.0373866,2606.3,2606.2,12.91559858]
[1727281085727,0.0373866,2606.3,2606.2,13.32717846]
[1727281086358,0.0373866,2606.3,2606.2,11.31532109]
[1727281087480,0.0373866,2606.3,2606.2,11.51785318]
[1727281087633,0.0373866,2606.3,2606.2,12.92356997]
[1727281088380,0.0373866,2606.3,2606.2,11.97077219]
[1727281088671,0.0373866,2606.3,2606.2,10.16235605]
[1727281089077,0.0373866,2606.3,2606.2,6.35823668]
[1727281089234,0.0373866,2606.3,2606.2,7.64116136]
[1727281089433,0.0373866,2606.3,2606.2,7.56444988]
[1727281089772,0.0373866,2606.3,2606.2,8.11444988]
[1727281090148,0.0373866,2606.3,2606.2,10.56444988]
[1727281090364,0.0373866,2606.3,2606.2,10.16232721]
[1727281090561,0.0373866,2606.3,2606.2,5.30449467]
[1727281090877,0.0373866,2606.3,2606.2,3.837]
[1727281091546,0.0373866,2606.3,2606.2,8.31889628]
[1727281091760,0.0373866,2606.3,2606.2,11.31889628]
[1727281091971,0.0373866,2606.3,2606.2,10.61630227]
[1727281092269,0.0373866,2606.3,2606.2,11.31895409]
[1727281093137,0.0373866,2606.3,2606.2,11.31896849]
[1727281094276,0.0373866,2606.3,2606.2,13.17720242]
[1727281095142,0.0373866,2606.3,2606.2,12.37311189]
[1727281096164,0.0373866,2606.3,2606.2,14.00170242]
[1727281096365,0.0373866,2606.3,2606.2,15.80927181]
[1727281096579,0.0373866,2606.3,2606.2,14.40382509]
[1727281097041,0.0373866,2606.3,2606.2,14.00196272]
[1727281097574,0.0373866,2606.3,2606.2,14.00196009]
[1727281097873,0.0373866,2606.3,2606.2,13.19764004]
[1727281098575,0.0373866,2606.3,2606.2,14.00198824]
[1727281098781,0.0373866,2606.3,2606.2,13.19764004]
[1727281099107,0.0373866,2606.3,2606.2,14.00198824]
[1727281099581,0.0373866,2606.3,2606.2,13.19764004]
[1727281099957,0.0373866,2606.3,2606.2,14.00198824]
[1727281101081,0.0373866,2606.3,2606.2,13.19764004]
[1727281101309,0.0373866,2606.3,2606.2,14.00198824]
[1727281102546,0.0373866,2606.3,2606.2,14.0023271]
[1727281103247,0.0373866,2606.3,2606.2,15.81008584]
[1727281103682,0.0373866,2606.3,2606.2,14.40437977]
[1727281103860,0.0373866,2606.3,2606.2,15.81027351]
[1727281104049,0.0373866,2606.3,2606.2,15.81028331]
[1727281104251,0.0373866,2606.3,2606.2,14.40437977]
[1727281104472,0.0373866,2606.3,2606.2,15.81028331]
[1727281105987,0.0373866,2606.3,2606.2,13.19816657]
[1727281106484,0.0373866,2606.3,2606.2,14.00305484]
[1727281106789,0.0373866,2606.3,2606.2,14.00305852]
[1727281107090,0.0373866,2606.3,2606.2,8.5943643]
[1727281107262,0.0373866,2606.3,2606.2,7.54022153]
[1727281107455,0.0373866,2606.3,2606.2,6.837]
[1727281110362,0.8130866,2606.3,2605.9,0.80489195]
[1727281110716,3.26668887,2606.3,2605.9,3.8374]
[1727281111000,0.79235766,2606.1,2605.6,3.83776]
[1727281111209,0.79235766,2606.0,2605.7,3.8377]
[1727281111366,0.7845,2605.9,2605.7,3.8377]
[1727281111563,0.7845,2605.9,2605.4,3.83804]
[1727281111564,0.86846655,2605.9,2605.4,3.83804]
[1727281111796,0.86846655,2605.9,2604.7,7.44]
[1727281111797,0.7845,2605.7,2604.7,7.44]
[1727281112109,1.6604714,2605.6,2605.3,7.67647]
[1727281112312,0.86811374,2605.6,2605.3,3.83822]
[1727281112491,0.7537,2605.5,2605.1,7.67707]
[1727281112664,0.83690543,2605.5,2605.3,3.83832]
[1727281112866,0.83690543,2605.5,2605.4,3.0]
[1727281113401,0.83690543,2605.5,2605.4,6.83818]
[1727281113564,0.08320543,2605.5,2605.4,6.83818]
[1727281113763,0.7536,2606.0,2605.9,6.83744]
[1727281114190,0.83659774,2606.0,2605.9,6.83744]
[1727281114380,0.7536,2606.0,2605.9,6.83744]
[1727281115266,0.83659774,2606.0,2605.9,6.83744]
[1727281115485,0.83659774,2606.0,2605.9,3.0]
[1727281115910,0.83659774,2606.0,2605.2,3.83838]
[1727281116073,0.767,2605.8,2605.4,3.83806]
[1727281116275,0.8067,2605.7,2605.2,3.83838]
[1727281116496,0.8067,2605.6,2605.2,3.83838]
[1727281116723,0.8067,2605.6,2605.3,3.83821]
[1727281117013,0.08299774,2605.5,2605.3,3.83821]
[1727281117215,0.08299774,2605.5,2604.9,7.44]
[1727281117216,0.08299774,2605.5,2605.2,3.8384]
[1727281117377,0.8067,2605.4,2605.2,3.8384]
[1727281117575,0.8067,2605.4,2605.1,3.83862]
[1727281117808,0.8067,2605.4,2605.2,3.0]
[1727281118007,0.8067,2605.4,2604.9,3.83881]
[1727281118008,0.8067,2605.2,2605.0,3.0]
[1727281118193,0.8067,2605.2,2604.9,3.83881]
[1727281118599,0.8067,2605.2,2604.7,3.83915]
[1727281118600,0.08299774,2605.1,2604.7,3.83915]
[1727281118954,0.7946,2605.0,2604.8,3.83896]
[1727281119069,0.08299774,2604.9,2604.8,3.83896]
[1727281120208,0.08299774,2604.9,2604.5,3.83941]
[1727281120209,0.08299774,2604.9,2604.5,3.83946]
[1727281120504,0.08299774,2604.9,2604.1,35.89006]
[1727281120505,0.7946,2604.8,2604.3,3.83969]
[1727281120722,0.08299774,2604.7,2604.3,3.83969]
[1727281120870,0.08299774,2604.7,2603.9,11.28034]
[1727281120871,0.7946,2604.6,2604.1,3.84003]
[1727281121067,3.83952,2604.5,2603.9,7.68062]
[1727281121273,0.7946,2604.3,2603.6,3.84082]
[1727281121689,0.7946,2604.3,2603.5,7.44]
[1727281121690,0.7946,2604.3,2603.8,3.84044]
[1727281121892,0.08299774,2604.2,2603.8,3.84044]
[1727281122322,0.7946,2604.3,2603.8,7.68089]
[1727281122323,0.08299774,2604.1,2603.8,7.68089]
[1727281122626,0.7946,2604.3,2604.0,6.84024]
[1727281123000,0.7946,2604.3,2604.0,3.0]
[1727281123192,0.7946,2604.3,2603.8,6.84051]
[1727281123533,0.7946,2604.3,2603.9,3.84035]
[1727281123696,0.7946,2604.3,2604.0,6.84014]
[1727281124731,0.7946,2604.3,2604.1,3.84007]
[1727281124935,0.7946,2604.3,2604.0,3.0]
[1727281125290,0.7946,2604.3,2603.8,3.0]
[1727281125496,0.8057,2604.2,2603.8,3.0]
[1727281126043,0.8057,2604.2,2603.5,3.84098]
[1727281126205,4.64569,2604.2,2603.7,3.84068]
[1727281126393,4.303243,2604.3,2603.5,3.84088]
[1727281126394,3.84012,2604.1,2603.5,3.84088]
[1727281126596,3.84012,2604.1,2603.3,3.84119]
[1727281126597,0.8188,2603.9,2603.3,3.84119]
[1727281126830,0.8188,2603.9,2603.4,3.84111]
[1727281126991,0.7697,2603.7,2603.3,3.84119]
[1727281127191,0.7697,2603.7,2603.4,3.84112]
[1727281127636,0.7697,2603.7,2603.3,3.84119]
[1727281129090,0.7697,2603.7,2603.4,3.0]
[1727281129709,0.7697,2603.7,2603.4,6.84112]
[1727281129919,1.2773052,2603.7,2603.4,3.0]
[1727281130300,4.6104,2603.7,2603.4,3.0]
[1727281130508,3.84083,2603.6,2603.2,0.0373866]
[1727281130711,4.306462,2603.8,2603.2,0.0373866]
[1727281130712,3.84127,2603.3,2603.2,0.0373866]
[1727281130917,1.212427,2603.3,2603.2,0.0373866]
[1727281131660,0.8283,2603.3,2603.2,0.0373866]
[1727281135332,4.66957,2603.3,2603.2,0.0373866]
[1727281135924,0.8283,2603.3,2603.2,0.0373866]
[1727281136839,0.9080971,2603.3,2603.2,0.0373866]
[1727281137227,0.9080971,2603.3,2603.2,6.8788066]
[1727281137228,0.0797971,2603.3,2603.2,6.8788066]
[1727281137617,0.7647,2603.5,2603.3,6.84117]
[1727281138165,0.8321,2604.1,2603.5,3.84088]
[1727281138464,0.8145,2603.7,2603.5,3.0]
[1727281138961,4.6552,2603.7,2603.2,3.8787066]
[1727281139115,4.6552,2603.7,2603.3,3.0]
[1727281140013,0.8145,2603.7,2603.3,6.84126]
[1727281140326,4.65519,2603.7,2603.3,6.84126]
[1727281140526,4.65519,2603.7,2603.2,0.0373866]
[1727281140527,0.8145,2603.7,2603.5,3.0]
[1727281140768,0.8145,2603.7,2603.3,3.84127]
[1727281140915,0.8145,2603.7,2603.4,3.0]
[1727281141869,0.8145,2603.7,2603.5,3.8409]
[1727281142215,0.8145,2603.7,2603.4,3.0]
[1727281142216,0.8313,2604.3,2603.9,3.8403]
[1727281142415,0.8313,2604.3,2603.4,0.8091]
[1727281142416,0.8313,2604.3,2604.1,3.84002]
[1727281142652,0.8313,2604.3,2604.2,3.83995]
[1727281143226,0.8313,2604.3,2604.1,3.84003]
[1727281143419,0.8313,2604.3,2604.2,3.83995]
[1727281143691,0.8313,2604.3,2603.7,6.84064]
[1727281143692,0.7754,2604.8,2604.5,3.8394]
[1727281143959,0.7754,2604.8,2604.6,3.83928]
[1727281144758,0.7754,2604.8,2604.7,3.83921]
[1727281145440,3.98133693,2605.5,2604.3,3.0]
[1727281145441,0.8129,2605.0,2604.5,3.83939]
[1727281145644,3.83893,2604.9,2604.1,3.0]
[1727281145961,3.83906,2604.8,2604.4,3.0]
[1727281146159,0.8129,2605.0,2604.8,3.83906]
[1727281146372,0.07715459,2604.9,2604.8,3.83899]
[1727281146832,0.07715459,2604.9,2604.4,3.0]
[1727281147036,0.07715459,2604.9,2604.2,3.8399]
[1727281147037,3.83917,2604.8,2604.2,3.8399]
[1727281147244,0.85682346,2604.8,2604.5,3.83949]
[1727281147537,0.07715459,2604.7,2604.5,3.83949]
[1727281147745,3.83893,2604.9,2604.5,3.83949]
[1727281147951,0.07748775,2604.8,2604.5,3.83949]
[1727281148455,0.07748775,2604.8,2604.4,3.0]
[1727281148664,0.07748775,2604.8,2604.4,6.83963]
[1727281148977,3.91655775,2604.8,2604.4,3.0]
[1727281149308,3.91655775,2604.8,2604.5,3.83949]
[1727281149309,0.07748775,2604.8,2604.5,3.83949]
[1727281149643,0.8129,2605.0,2604.6,3.83934]
[1727281149840,0.07748775,2604.7,2604.6,3.83934]
[1727281150039,4.65167,2605.0,2604.4,6.83963]
[1727281150040,0.8129,2605.0,2604.4,6.83957]
[1727281150267,0.07748775,2604.7,2604.5,3.83944]
[1727281150473,0.07748775,2604.7,2604.4,6.83957]
[1727281150474,3.83909,2604.8,2604.4,3.0]
[1727281150739,3.83909,2604.8,2604.4,3.8396]
[1727281150967,0.07748775,2604.7,2604.3,3.0]
[1727281151187,0.8129,2605.0,2604.5,7.67885]
[1727281151367,0.07748775,2604.6,2604.5,3.83942]
[1727281151685,1.66194,2605.0,2604.7,3.83918]
[1727281151977,1.66194,2605.0,2604.6,3.83934]
[1727281152177,0.8129,2605.0,2604.7,3.83921]
[1727281152741,3.83916,2604.8,2604.3,6.83971]
[1727281152940,0.849091,2604.8,2604.4,3.83963]
[1727281153153,3.83892,2604.9,2604.5,3.0]
[1727281153985,3.83892,2604.9,2604.4,3.0]
[1727281154148,3.83923,2604.7,2604.4,3.0]
[1727281154351,3.83892,2604.9,2604.4,3.0]
[1727281154591,3.83907,2604.8,2604.4,3.0]
[1727281155655,3.83892,2604.9,2604.4,3.0]
[1727281155850,3.83923,2604.7,2604.4,3.0]
[1727281156492,3.83923,2604.7,2604.1,3.83997]
[1727281156493,3.83987,2604.3,2603.9,3.84037]
[1727281156660,4.65391,2604.5,2604.0,3.84022]
[1727281156661,3.83967,2604.4,2604.0,3.84022]
[1727281156866,4.65391,2604.5,2604.0,3.84022]
[1727281157065,8.49352,2604.5,2604.0,3.84022]
[1727281157264,8.49352,2604.5,2604.1,3.84008]
[1727281157265,4.65391,2604.5,2604.1,3.84008]
[1727281157598,0.07820981,2604.4,2604.0,3.84023]
[1727281157832,0.07820981,2604.4,2604.1,3.84009]
[1727281158863,0.07820981,2604.4,2604.0,6.84021]
[1727281159061,0.07820981,2604.4,2603.9,3.0]
[1727281159062,3.83995,2604.2,2603.9,3.0]
[1727281159266,0.802,2604.3,2604.1,3.84004]
[1727281159465,4.64152,2604.5,2604.1,3.0]
[1727281159681,4.64152,2604.5,2604.1,6.84003]
[1727281160077,0.802,2604.5,2604.2,3.83987]
[1727281161282,0.802,2604.5,2604.1,6.84008]
[1727281161520,4.6415,2604.5,2604.1,6.84008]
[1727281161717,0.802,2604.5,2604.2,3.83993]
[1727281166725,0.07778645,2604.4,2604.2,3.83993]
[1727281167086,0.07778645,2604.4,2604.1,3.0]
[1727281167351,0.7639,2604.1,2603.7,3.84054]
[1727281167640,0.7639,2604.1,2603.8,3.84047]
[1727281167791,0.07769621,2604.0,2603.8,4.62937]
[1727281168131,3.83987,2604.3,2603.9,3.84039]
[1727281168830,3.83999,2604.2,2603.8,3.7889]
[1727281169009,3.83999,2604.2,2603.8,3.0]
[1727281169330,3.83999,2604.2,2603.8,6.84052]
[1727281169900,0.8128,2603.9,2602.8,8.24489195]
[1727281170106,5.0582049,2603.9,2603.5,3.84093]
[1727281170307,4.65328,2603.9,2603.5,3.84093]
[1727281170799,4.65328,2603.9,2603.4,3.8411]
[1727281171139,4.6532,2603.9,2603.5,3.8409]
[1727281171319,4.6532,2603.9,2603.5,3.0]
[1727281173941,4.6532,2603.9,2603.3,3.0]
[1727281174145,4.6532,2603.9,2603.5,3.0]
[1727281174940,0.8128,2603.9,2603.5,6.84095]
[1727281175147,8.49367,2603.9,2603.5,6.84095]
[1727281175357,4.6532,2603.9,2603.5,6.84095]
[1727281175726,3.84054,2603.8,2603.3,3.84114]
[1727281175933,3.84054,2603.8,2603.4,6.84105]
[1727281176553,3.8407,2603.7,2603.4,3.0]
[1727281176865,3.84054,2603.8,2603.4,3.0]
[1727281177342,4.65322,2603.9,2603.4,3.0]
[1727281177521,3.84062,2603.8,2603.4,6.84112]
[1727281177705,4.6532,2603.9,2603.4,6.84112]
[1727281178108,3.84054,2603.8,2603.4,6.84112]
[1727281178365,3.84083,2603.6,2603.2,3.8787366]
[1727281178524,3.84083,2603.6,2603.3,3.0]
[1727281178704,3.8407,2603.7,2603.3,3.0]
[1727281178906,0.8128,2603.9,2603.4,3.84102]
[1727281179158,0.8128,2603.9,2603.5,3.0]
[1727281179326,0.79235766,2604.1,2603.6,3.84082]
[1727281179327,3.84032,2604.0,2603.6,3.84082]
[1727281180047,4.63267766,2604.0,2603.5,3.0]
[1727281180208,3.84055,2603.8,2603.5,3.0]
[1727281180409,3.84055,2603.8,2603.3,6.84125]
[1727281180645,4.59875,2603.7,2603.3,6.84125]
[1727281180947,7.68187,2603.6,2603.2,0.0373866]
[1727281181620,0.07686298,2603.5,2603.2,0.0373866]
[1727281182256,3.84056,2603.8,2603.4,6.84112]
[1727281183160,3.84068,2603.7,2603.3,3.0]
[1727281183361,3.84056,2603.8,2603.4,3.84111]
[1727281183929,3.84056,2603.8,2603.5,3.0]
[1727281184350,3.84075,2603.7,2603.3,6.84121]
[1727281185659,3.84055,2603.8,2603.3,6.84113]
[1727281185965,3.8407,2603.7,2603.4,3.0]
[1727281186284,4.84270661,2603.9,2603.4,3.0]
[1727281186455,4.64507,2603.3,2603.2,0.0373866]
[1727281186774,0.8038,2603.3,2603.2,0.0373866]
[1727281186943,5.43722766,2603.5,2603.2,0.0373866]
[1727281187262,0.8038,2603.5,2603.2,0.0373866]
[1727281187567,3.84115,2603.4,2603.2,0.0373866]
[1727281188424,0.79235766,2603.6,2603.2,4.6736866]
[1727281188621,0.79235766,2603.7,2603.4,3.84107]
[1727281188827,0.79235766,2603.8,2603.5,3.0]
[1727281189063,4.63274766,2603.9,2603.5,6.84091]
[1727281189256,0.7617,2604.0,2603.5,6.84091]
[1727281189257,5.39430766,2604.0,2603.6,3.84081]
[1727281189427,0.93452102,2603.9,2603.7,3.84058]
[1727281189639,5.45020766,2604.2,2603.7,8.43318]
[1727281189856,1.61025766,2604.2,2603.8,3.84051]
[1727281190069,4.63206766,2604.4,2604.0,3.84024]
[1727281190257,5.44616766,2604.4,2604.0,3.84024]
[1727281190563,5.44616766,2604.4,2603.8,3.84051]
[1727281190564,5.44616766,2604.4,2603.9,3.84038]
[1727281190771,4.65381,2604.4,2603.9,3.84038]
[1727281190941,0.8141,2604.4,2604.0,3.8402]
[1727281191271,0.79235766,2604.4,2604.1,3.84009]
[1727281191433,0.79235766,2604.5,2604.2,3.83988]
[1727281191632,0.79235766,2604.7,2604.4,3.83955]
[1727281191901,0.79235766,2604.9,2604.3,3.0]
[1727281192052,0.79235766,2605.1,2604.7,3.83914]
[1727281192360,1.18736304,2605.2,2604.7,3.83914]
[1727281192361,3.83877,2605.0,2604.7,3.0]
[1727281192661,4.63084766,2605.2,2604.7,3.0]
[1727281192662,0.79235766,2605.1,2604.7,3.0]
[1727281192835,2.63349968,2605.1,2604.7,3.0]
[1727281193042,4.74404596,2605.1,2604.7,6.83907]
[1727281193261,7.98012491,2605.1,2604.7,3.0]
[1727281193462,8.77248257,2605.1,2604.7,3.0]
[1727281193951,0.90541596,2605.1,2604.7,6.83919]
[1727281194154,0.79235766,2605.2,2604.8,0.7593]